[Event "Live Chess"]
[Site "Chess.com"]
[Date "2024.06.01"]
[Round "-"]
[White "CennyddB"]
[Black "AlexanderMatlak"]
[Result "0-1"]
[WhiteElo "1132"]
[BlackElo "2500"]
[TimeControl "300"]
[EndTime "10:29:49 PDT"]
[Termination "AlexanderMatlak won by resignation"]

1. d4 {[%clk 0:04:56.3]} 1... Nf6 {[%clk 0:04:58.6]} 2. Nf3 {[%clk 0:04:55.3]}
2... c5 {[%clk 0:04:57.4]} 3. d5 {[%clk 0:04:53.3]} 3... e6 {[%clk 0:04:56.1]}
4. c4 {[%clk 0:04:49.4]} 4... exd5 {[%clk 0:04:56]} 5. cxd5 {[%clk 0:04:47.9]}
5... d6 {[%clk 0:04:55.6]} 6. Nc3 {[%clk 0:04:45.5]} 6... g6 {[%clk 0:04:55]} 7.
Bg5 {[%clk 0:04:42.7]} 7... Bg7 {[%clk 0:04:54]} 8. e3 {[%clk 0:04:39.1]} 8...
O-O {[%clk 0:04:53.1]} 9. Be2 {[%clk 0:04:31.7]} 9... h6 {[%clk 0:04:52]} 10.
Bh4 {[%clk 0:04:30.2]} 10... Re8 {[%clk 0:04:49.6]} 11. O-O {[%clk 0:04:27.1]}
11... a6 {[%clk 0:04:47.4]} 12. a4 {[%clk 0:04:20.7]} 12... Bf5 {[%clk
0:04:46.1]} 13. Qb3 {[%clk 0:04:13.1]} 13... Qc7 {[%clk 0:04:42.1]} 14. a5
{[%clk 0:03:59.3]} 14... Nbd7 {[%clk 0:04:37.4]} 15. Nd2 {[%clk 0:03:45]} 15...
g5 {[%clk 0:04:35]} 16. Bg3 {[%clk 0:03:43.8]} 16... Ne5 {[%clk 0:04:22.8]} 17.
Bxe5 {[%clk 0:03:35.8]} 17... Rxe5 {[%clk 0:04:22.7]} 18. Nc4 {[%clk 0:03:34.4]}
18... Ree8 {[%clk 0:04:20.5]} 19. Nb6 {[%clk 0:03:27.7]} 19... Rad8 {[%clk
0:04:19.5]} 20. Bd1 {[%clk 0:03:11.8]} 20... Ne4 {[%clk 0:04:13.7]} 21. Bc2
{[%clk 0:03:05.8]} 21... Bg6 {[%clk 0:04:04.7]} 22. Nxe4 {[%clk 0:03:00]} 22...
Bxe4 {[%clk 0:04:04.6]} 23. Bxe4 {[%clk 0:02:55.4]} 23... Rxe4 {[%clk
0:04:04.5]} 24. Qd3 {[%clk 0:02:52.4]} 24... Rb4 {[%clk 0:03:49.4]} 25. b3
{[%clk 0:02:46.6]} 25... Bxa1 {[%clk 0:03:45.4]} 26. Rxa1 {[%clk 0:02:45.2]}
26... Qe7 {[%clk 0:03:41.1]} 27. Nc4 {[%clk 0:02:28.4]} 27... Qf6 {[%clk
0:03:38.4]} 28. Re1 {[%clk 0:02:02.1]} 28... Kg7 {[%clk 0:03:19.1]} 29. e4
{[%clk 0:01:54]} 29... Re8 {[%clk 0:03:07.3]} 30. f3 {[%clk 0:01:30.9]} 30... h5
{[%clk 0:02:58.1]} 31. Rf1 {[%clk 0:00:54.9]} 31... h4 {[%clk 0:02:51]} 32. Ne3
{[%clk 0:00:46]} 32... Kg8 {[%clk 0:02:34]} 33. f4 {[%clk 0:00:36.6]} 33... Qd4
{[%clk 0:02:30]} 34. Qxd4 {[%clk 0:00:34.9]} 34... cxd4 {[%clk 0:02:25.1]} 35.
Nf5 {[%clk 0:00:30.5]} 35... Rd8 {[%clk 0:02:20.2]} 36. fxg5 {[%clk 0:00:24.4]}
36... d3 {[%clk 0:02:19.7]} 37. Rd1 {[%clk 0:00:20.1]} 37... Rxe4 {[%clk
0:02:13.3]} 38. Nxh4 {[%clk 0:00:18.2]} 38... Rxh4 {[%clk 0:02:12.1]} 39. Rxd3
{[%clk 0:00:16]} 39... Rg4 {[%clk 0:02:08.4]} 40. Rf3 {[%clk 0:00:14.3]} 40...
Rxg5 {[%clk 0:02:07.3]} 41. h4 {[%clk 0:00:12.8]} 41... Rxd5 {[%clk 0:02:06.2]}
42. Rg3+ {[%clk 0:00:12.1]} 42... Kf8 {[%clk 0:02:04.4]} 0-1

[Event "Live Chess"]
[Site "Chess.com"]
[Date "2024.06.01"]
[Round "-"]
[White "Rusty_Bridges"]
[Black "Cruiseylee78"]
[Result "0-1"]
[WhiteElo "1486"]
[BlackElo "1656"]
[TimeControl "300"]
[EndTime "10:29:54 PDT"]
[Termination "Cruiseylee78 won by resignation"]

1. e4 {[%clk 0:04:53.8]} 1... d6 {[%clk 0:04:56.9]} 2. d4 {[%clk 0:04:51.8]}
2... Nd7 {[%clk 0:04:56.8]} 3. c4 {[%clk 0:04:50.3]} 3... e5 {[%clk 0:04:55.6]}
4. d5 {[%clk 0:04:48.7]} 4... h6 {[%clk 0:04:51.5]} 5. Nc3 {[%clk 0:04:46.9]}
5... Ngf6 {[%clk 0:04:50.7]} 6. Be3 {[%clk 0:04:39.8]} 6... c6 {[%clk
0:04:50.1]} 7. Nf3 {[%clk 0:04:36.6]} 7... Be7 {[%clk 0:04:49]} 8. Bd3 {[%clk
0:04:34.5]} 8... Qc7 {[%clk 0:04:47.2]} 9. O-O {[%clk 0:04:32.3]} 9... g5 {[%clk
0:04:46]} 10. g3 {[%clk 0:04:23.2]} 10... Rg8 {[%clk 0:04:36.5]} 11. Rc1 {[%clk
0:04:20.9]} 11... g4 {[%clk 0:04:29.5]} 12. Nh4 {[%clk 0:04:18.4]} 12... h5
{[%clk 0:04:21.7]} 13. Nf5 {[%clk 0:04:16.3]} 13... Nf8 {[%clk 0:04:16.3]} 14.
Qd2 {[%clk 0:04:09.6]} 14... Bxf5 {[%clk 0:04:11.1]} 15. exf5 {[%clk 0:04:06.7]}
15... N6h7 {[%clk 0:03:53.1]} 16. Ne4 {[%clk 0:03:56.8]} 16... Qd8 {[%clk
0:03:39.5]} 17. b4 {[%clk 0:03:47.2]} 17... Ng5 {[%clk 0:03:38.4]} 18. Nxg5
{[%clk 0:03:39.4]} 18... Bxg5 {[%clk 0:03:38.3]} 19. b5 {[%clk 0:03:28.6]} 19...
c5 {[%clk 0:03:35.3]} 20. a4 {[%clk 0:03:17.3]} 20... Nd7 {[%clk 0:03:29.2]} 21.
Ra1 {[%clk 0:03:01.4]} 21... Nf6 {[%clk 0:03:26.6]} 22. a5 {[%clk 0:02:53.2]}
22... e4 {[%clk 0:03:25.2]} 23. Bc2 {[%clk 0:02:43.1]} 23... Qd7 {[%clk
0:03:22.9]} 24. Bxg5 {[%clk 0:02:40.7]} 24... Qxf5 {[%clk 0:03:18.8]} 25. Bxf6
{[%clk 0:02:36.5]} 25... Qxf6 {[%clk 0:03:17.6]} 26. Bxe4 {[%clk 0:02:33.2]}
26... O-O-O {[%clk 0:03:16.5]} 27. Rfe1 {[%clk 0:02:28.4]} 27... h4 {[%clk
0:03:14.8]} 28. Qf4 {[%clk 0:02:22.2]} 28... Qg7 {[%clk 0:03:02.2]} 29. Bf5+
{[%clk 0:02:15.7]} 29... Kb8 {[%clk 0:03:01]} 30. Qxd6+ {[%clk 0:02:12.9]} 30...
Rxd6 {[%clk 0:02:59]} 31. Re2 {[%clk 0:02:08.8]} 31... Qxa1+ {[%clk 0:02:56.1]}
0-1

[Event "Live Chess"]
[Site "Chess.com"]
[Date "2024.06.01"]
[Round "-"]
[White "TigerTank70"]
[Black "jumush"]
[Result "1-0"]
[WhiteElo "2180"]
[BlackElo "1738"]
[TimeControl "300"]
[EndTime "10:29:55 PDT"]
[Termination "TigerTank70 won by resignation"]

1. e4 {[%clk 0:04:59.5]} 1... d5 {[%clk 0:04:57.1]} 2. exd5 {[%clk 0:04:58.3]}
2... Qxd5 {[%clk 0:04:54.9]} 3. d4 {[%clk 0:04:58.2]} 3... Nc6 {[%clk
0:04:52.5]} 4. Nf3 {[%clk 0:04:55]} 4... Bg4 {[%clk 0:04:49.6]} 5. Be2 {[%clk
0:04:54.5]} 5... O-O-O {[%clk 0:04:47.7]} 6. c4 {[%clk 0:04:53.9]} 6... Qf5
{[%clk 0:04:43.6]} 7. Be3 {[%clk 0:04:52.7]} 7... e6 {[%clk 0:04:41.6]} 8. Nbd2
{[%clk 0:04:50.9]} 8... Nf6 {[%clk 0:04:35.9]} 9. h3 {[%clk 0:04:48.1]} 9...
Bxf3 {[%clk 0:04:26.4]} 10. Nxf3 {[%clk 0:04:48]} 10... Bb4+ {[%clk 0:04:18.1]}
11. Kf1 {[%clk 0:04:45.9]} 11... Rhe8 {[%clk 0:04:12.6]} 12. a3 {[%clk
0:04:45.1]} 12... Bf8 {[%clk 0:04:06]} 13. Bd3 {[%clk 0:04:42.3]} 13... Qh5
{[%clk 0:03:56.3]} 14. Kg1 {[%clk 0:04:33.6]} 14... h6 {[%clk 0:03:48.1]} 15. g4
{[%clk 0:04:32.4]} 15... Nxg4 {[%clk 0:03:46.3]} 16. hxg4 {[%clk 0:04:30.4]}
16... Qxg4+ {[%clk 0:03:39.9]} 17. Kf1 {[%clk 0:04:29.6]} 17... g5 {[%clk
0:03:24.6]} 18. Ne1 {[%clk 0:03:56.7]} 18... Qxd1 {[%clk 0:03:20.5]} 19. Rxd1
{[%clk 0:03:56.6]} 19... Nxd4 {[%clk 0:03:14.8]} 20. Be4 {[%clk 0:03:47.6]}
20... Nb3 {[%clk 0:03:00.2]} 21. Rxd8+ {[%clk 0:03:43.3]} 21... Rxd8 {[%clk
0:02:57.4]} 22. Bc2 {[%clk 0:03:19.3]} 22... Nd4 {[%clk 0:02:52.4]} 23. Bb1
{[%clk 0:03:13.2]} 23... f5 {[%clk 0:02:43]} 24. Nd3 {[%clk 0:03:10.8]} 24... f4
{[%clk 0:02:37.1]} 25. Bxd4 {[%clk 0:03:05.2]} 25... Rxd4 {[%clk 0:02:34.1]} 26.
b3 {[%clk 0:02:57.8]} 26... c5 {[%clk 0:02:31.2]} 27. Ke2 {[%clk 0:02:54]} 27...
Kc7 {[%clk 0:02:28.6]} 28. Ne5 {[%clk 0:02:46.2]} 28... Bg7 {[%clk 0:02:21.1]}
29. Ng4 {[%clk 0:02:40.6]} 29... e5 {[%clk 0:02:13.6]} 30. Nxh6 {[%clk
0:02:37.4]} 30... e4 {[%clk 0:02:11.2]} 31. Nf5 {[%clk 0:02:30.1]} 31... Rd7
{[%clk 0:02:06.5]} 32. Nxg7 {[%clk 0:02:24.2]} 32... Rxg7 {[%clk 0:02:02.2]} 33.
Bxe4 {[%clk 0:02:23.3]} 33... Re7 {[%clk 0:01:47.5]} 34. Rh7 {[%clk 0:02:22.1]}
34... Rxh7 {[%clk 0:01:43.5]} 35. Bxh7 {[%clk 0:02:22]} 35... Kd6 {[%clk
0:01:39.9]} 36. Be4 {[%clk 0:02:10.3]} 36... b6 {[%clk 0:01:37.4]} 37. f3 {[%clk
0:02:05.6]} 37... Ke5 {[%clk 0:01:35.6]} 38. Kd3 {[%clk 0:02:04.5]} 38... Kd6
{[%clk 0:01:30.4]} 39. Bb7 {[%clk 0:02:01.1]} 39... Ke5 {[%clk 0:01:25.6]} 40.
a4 {[%clk 0:01:53.9]} 40... a5 {[%clk 0:01:17.2]} 41. Ba8 {[%clk 0:01:50.6]} 1-0

[Event "Live Chess"]
[Site "Chess.com"]
[Date "2024.06.01"]
[Round "-"]
[White "Velocity"]
[Black "Hazban"]
[Result "0-1"]
[WhiteElo "1719"]
[BlackElo "2040"]
[TimeControl "300"]
[EndTime "10:30:11 PDT"]
[Termination "Hazban won by resignation"]

1. e4 {[%clk 0:04:59.7]} 1... c6 {[%clk 0:04:59.1]} 2. d4 {[%clk 0:04:58.8]}
2... d5 {[%clk 0:04:59]} 3. Nd2 {[%clk 0:04:56.5]} 3... a6 {[%clk 0:04:56.5]} 4.
Ngf3 {[%clk 0:04:52.8]} 4... Bg4 {[%clk 0:04:53.7]} 5. Be2 {[%clk 0:04:47.8]}
5... e6 {[%clk 0:04:48.9]} 6. h3 {[%clk 0:04:42.4]} 6... Bxf3 {[%clk 0:04:46.7]}
7. Bxf3 {[%clk 0:04:40.2]} 7... dxe4 {[%clk 0:04:45.3]} 8. Nxe4 {[%clk
0:04:40.1]} 8... Nd7 {[%clk 0:04:43]} 9. Bf4 {[%clk 0:04:37]} 9... Ndf6 {[%clk
0:04:41.6]} 10. Ng3 {[%clk 0:04:17.9]} 10... Ne7 {[%clk 0:04:34.1]} 11. c3
{[%clk 0:04:12.4]} 11... Ng6 {[%clk 0:04:33.1]} 12. Be5 {[%clk 0:04:07.9]} 12...
Be7 {[%clk 0:04:31.8]} 13. Bxf6 {[%clk 0:04:04]} 13... Bxf6 {[%clk 0:04:30.7]}
14. O-O {[%clk 0:04:03]} 14... O-O {[%clk 0:04:29.4]} 15. Re1 {[%clk 0:04:00.7]}
15... Nh4 {[%clk 0:04:28.3]} 16. Be2 {[%clk 0:03:54.9]} 16... Qd5 {[%clk
0:04:26.4]} 17. Bf1 {[%clk 0:03:49.9]} 17... Rad8 {[%clk 0:04:22.7]} 18. Ne2
{[%clk 0:03:38.5]} 18... c5 {[%clk 0:04:21]} 19. dxc5 {[%clk 0:03:30.3]} 19...
Qxc5 {[%clk 0:04:19.9]} 20. Qb3 {[%clk 0:03:20.9]} 20... b5 {[%clk 0:04:18.1]}
21. Rad1 {[%clk 0:03:09.8]} 21... Nf5 {[%clk 0:03:55.9]} 22. Rxd8 {[%clk
0:02:50.5]} 22... Rxd8 {[%clk 0:03:55.8]} 23. Rd1 {[%clk 0:02:46.2]} 23... Rc8
{[%clk 0:03:50.9]} 24. Nf4 {[%clk 0:02:30.1]} 24... h6 {[%clk 0:03:45.8]} 25.
Nd3 {[%clk 0:02:28.6]} 25... Qa7 {[%clk 0:03:38.8]} 26. Nb4 {[%clk 0:02:22]}
26... Ng3 {[%clk 0:03:35.2]} 27. Bd3 {[%clk 0:02:10.9]} 27... Nh5 {[%clk
0:03:33.2]} 28. Be2 {[%clk 0:02:07]} 28... Nf4 {[%clk 0:03:31.4]} 29. Bf3 {[%clk
0:02:02.8]} 29... a5 {[%clk 0:03:24.4]} 30. Nd3 {[%clk 0:02:01.8]} 30... Nxd3
{[%clk 0:03:17.3]} 31. Rxd3 {[%clk 0:02:01.7]} 31... Qc5 {[%clk 0:03:15.8]} 32.
Qd1 {[%clk 0:01:57.3]} 32... b4 {[%clk 0:03:09.2]} 33. cxb4 {[%clk 0:01:55.1]}
33... Qxb4 {[%clk 0:03:07.2]} 34. b3 {[%clk 0:01:53.3]} 34... Qa3 {[%clk
0:03:04.1]} 35. Rd2 {[%clk 0:01:51.2]} 35... Rc1 {[%clk 0:03:00.9]} 0-1

[Event "Live Chess"]
[Site "Chess.com"]
[Date "2024.06.01"]
[Round "-"]
[White "ProfPoisson"]
[Black "viktor_forever1994"]
[Result "1-0"]
[WhiteElo "1244"]
[BlackElo "1392"]
[TimeControl "300"]
[EndTime "10:30:12 PDT"]
[Termination "ProfPoisson won by checkmate"]

1. e4 {[%clk 0:04:54.1]} 1... e5 {[%clk 0:04:58.8]} 2. Nf3 {[%clk 0:04:49.8]}
2... Nc6 {[%clk 0:04:57.6]} 3. d4 {[%clk 0:04:45.2]} 3... exd4 {[%clk
0:04:56.5]} 4. Bc4 {[%clk 0:04:42.6]} 4... d6 {[%clk 0:04:54.1]} 5. Nxd4 {[%clk
0:04:39.7]} 5... Nxd4 {[%clk 0:04:47.2]} 6. Qxd4 {[%clk 0:04:37.1]} 6... Qf6
{[%clk 0:04:43.5]} 7. Qe3 {[%clk 0:04:27.9]} 7... a6 {[%clk 0:04:26.1]} 8. Nc3
{[%clk 0:04:26]} 8... Be6 {[%clk 0:04:19.7]} 9. Bxe6 {[%clk 0:03:47.7]} 9...
Qxe6 {[%clk 0:04:19.6]} 10. Nd5 {[%clk 0:03:44.3]} 10... O-O-O {[%clk
0:04:15.4]} 11. O-O {[%clk 0:03:31.3]} 11... Ne7 {[%clk 0:04:14.3]} 12. c4
{[%clk 0:03:15.7]} 12... g6 {[%clk 0:03:51.9]} 13. b3 {[%clk 0:02:58.8]} 13...
Nc6 {[%clk 0:03:34.5]} 14. Bb2 {[%clk 0:02:56.1]} 14... Rg8 {[%clk 0:03:31.2]}
15. b4 {[%clk 0:02:47.4]} 15... Ne5 {[%clk 0:03:17.7]} 16. Bxe5 {[%clk
0:02:42.2]} 16... Qxe5 {[%clk 0:03:17.6]} 17. Qa7 {[%clk 0:02:35]} 17... Kd7
{[%clk 0:02:26.4]} 18. Qxb7 {[%clk 0:02:33]} 18... Rc8 {[%clk 0:02:24.4]} 19.
Nb6+ {[%clk 0:02:29.2]} 19... Ke6 {[%clk 0:02:11.4]} 20. Qxc8+ {[%clk
0:02:25.7]} 20... Ke7 {[%clk 0:02:10.1]} 21. Qd7+ {[%clk 0:02:23.1]} 21... Kf6
{[%clk 0:02:08.6]} 22. Nd5+ {[%clk 0:02:18.8]} 22... Kg7 {[%clk 0:02:01.8]} 23.
Qg4 {[%clk 0:01:59.8]} 23... h5 {[%clk 0:01:54.4]} 24. Qf4 {[%clk 0:01:56.6]}
24... Qd4 {[%clk 0:01:46.9]} 25. Rad1 {[%clk 0:01:48.5]} 25... Qb2 {[%clk
0:01:44.6]} 26. e5 {[%clk 0:01:32.8]} 26... dxe5 {[%clk 0:01:38.3]} 27. Qf6+
{[%clk 0:01:31]} 27... Kh6 {[%clk 0:01:25.8]} 28. h4 {[%clk 0:01:29.3]} 28...
Bd6 {[%clk 0:00:58.5]} 29. Qg5+ {[%clk 0:01:24.2]} 29... Kg7 {[%clk 0:00:53.6]}
30. Qf6+ {[%clk 0:01:21.6]} 30... Kf8 {[%clk 0:00:50.5]} 31. Qd8+ {[%clk
0:01:12]} 31... Kg7 {[%clk 0:00:49.2]} 32. Qf6+ {[%clk 0:01:07]} 32... Kf8
{[%clk 0:00:48]} 33. c5 {[%clk 0:00:53.3]} 33... Be7 {[%clk 0:00:24.1]} 34.
Qxe7+ {[%clk 0:00:50.8]} 34... Kg7 {[%clk 0:00:24]} 35. Qf6+ {[%clk 0:00:47.5]}
35... Kf8 {[%clk 0:00:22.7]} 36. Nxc7 {[%clk 0:00:46.1]} 36... Qxb4 {[%clk
0:00:17.3]} 37. Rd8# {[%clk 0:00:44.3]} 1-0

[Event "Live Chess"]
[Site "Chess.com"]
[Date "2024.06.01"]
[Round "-"]
[White "Ksenia_2013"]
[Black "A3ndrey9"]
[Result "0-1"]
[WhiteElo "769"]
[BlackElo "1261"]
[TimeControl "300"]
[EndTime "10:30:16 PDT"]
[Termination "A3ndrey9 won by checkmate"]

1. e4 {[%clk 0:04:58.3]} 1... c6 {[%clk 0:04:59.3]} 2. Bc4 {[%clk 0:04:55.2]}
2... d5 {[%clk 0:04:59.2]} 3. exd5 {[%clk 0:04:53.6]} 3... cxd5 {[%clk
0:04:59.1]} 4. Bb5+ {[%clk 0:04:52.7]} 4... Bd7 {[%clk 0:04:55.9]} 5. Qe2 {[%clk
0:04:49.1]} 5... Bxb5 {[%clk 0:04:53]} 6. Qxb5+ {[%clk 0:04:45.9]} 6... Qd7
{[%clk 0:04:52.9]} 7. Qxd7+ {[%clk 0:04:38.7]} 7... Nxd7 {[%clk 0:04:52.8]} 8.
Nf3 {[%clk 0:04:34.8]} 8... Ngf6 {[%clk 0:04:52.3]} 9. Ne5 {[%clk 0:04:32.6]}
9... Nxe5 {[%clk 0:04:50.4]} 10. d4 {[%clk 0:04:27.8]} 10... Nc6 {[%clk
0:04:47.4]} 11. Bf4 {[%clk 0:04:25.3]} 11... Nxd4 {[%clk 0:04:44.8]} 12. Nc3
{[%clk 0:04:21]} 12... Nxc2+ {[%clk 0:04:43.9]} 13. Kd1 {[%clk 0:04:18.9]} 13...
Nxa1 {[%clk 0:04:43.2]} 14. Nb5 {[%clk 0:04:15.8]} 14... Rc8 {[%clk 0:04:23.6]}
15. Nxa7 {[%clk 0:04:13.4]} 15... Rc4 {[%clk 0:04:15.7]} 16. Be3 {[%clk
0:04:02.6]} 16... Ne4 {[%clk 0:04:12.2]} 17. f3 {[%clk 0:03:55.2]} 17... Nf6
{[%clk 0:03:56.9]} 18. Ke2 {[%clk 0:03:51.3]} 18... Nc2 {[%clk 0:03:53.9]} 19.
Rc1 {[%clk 0:03:48.4]} 19... Nd4+ {[%clk 0:03:50.8]} 20. Kd2 {[%clk 0:03:39.6]}
20... Rxc1 {[%clk 0:03:48.2]} 21. Kxc1 {[%clk 0:03:38.6]} 21... e5 {[%clk
0:03:45.8]} 22. Bxd4 {[%clk 0:03:36.8]} 22... exd4 {[%clk 0:03:44.5]} 23. Nc8
{[%clk 0:03:33.2]} 23... Bc5 {[%clk 0:03:41.6]} 24. Kd2 {[%clk 0:03:24.7]} 24...
O-O {[%clk 0:03:40.3]} 25. a3 {[%clk 0:03:20]} 25... Rxc8 {[%clk 0:03:39.4]} 26.
b4 {[%clk 0:03:13.5]} 26... Bxb4+ {[%clk 0:03:37.9]} 27. axb4 {[%clk 0:03:11.7]}
27... b5 {[%clk 0:03:37.2]} 28. Kd3 {[%clk 0:03:09.9]} 28... Rc4 {[%clk
0:03:35.1]} 29. g4 {[%clk 0:03:03.4]} 29... Rxb4 {[%clk 0:03:34.2]} 30. g5
{[%clk 0:03:02.3]} 30... Nh5 {[%clk 0:03:31.9]} 31. h4 {[%clk 0:02:59.3]} 31...
Nf4+ {[%clk 0:03:31]} 32. Kc2 {[%clk 0:02:54.9]} 32... h6 {[%clk 0:03:22.9]} 33.
gxh6 {[%clk 0:02:52.8]} 33... g6 {[%clk 0:03:19.9]} 34. Kd1 {[%clk 0:02:44.7]}
34... Kh7 {[%clk 0:03:18.4]} 35. Ke1 {[%clk 0:02:43.5]} 35... Kxh6 {[%clk
0:03:17.8]} 36. Kf2 {[%clk 0:02:42.7]} 36... Kh5 {[%clk 0:03:17.3]} 37. Kg3
{[%clk 0:02:41.7]} 37... g5 {[%clk 0:03:12.2]} 38. Kh2 {[%clk 0:02:36.6]} 38...
gxh4 {[%clk 0:03:10.1]} 39. Kg1 {[%clk 0:02:35.1]} 39... h3 {[%clk 0:03:08.4]}
40. Kh2 {[%clk 0:02:33]} 40... Kh4 {[%clk 0:03:06.6]} 41. Kh1 {[%clk 0:02:31.1]}
41... Rb2 {[%clk 0:03:04.1]} 42. Kg1 {[%clk 0:02:27.9]} 42... h2+ {[%clk
0:03:01.5]} 43. Kh1 {[%clk 0:02:26.6]} 43... Ne2 {[%clk 0:02:38.1]} 44. f4
{[%clk 0:02:23.9]} 44... Ng3# {[%clk 0:02:34.7]} 0-1

[Event "Live Chess"]
[Site "Chess.com"]
[Date "2024.06.01"]
[Round "-"]
[White "seasidecastle27"]
[Black "peteopeteo"]
[Result "1-0"]
[WhiteElo "1951"]
[BlackElo "1608"]
[TimeControl "300"]
[EndTime "10:30:27 PDT"]
[Termination "seasidecastle27 won by checkmate"]

1. d4 {[%clk 0:04:57.7]} 1... f5 {[%clk 0:04:57.6]} 2. Bg5 {[%clk 0:04:52.2]}
2... d5 {[%clk 0:04:44.2]} 3. e3 {[%clk 0:04:50.4]} 3... Nd7 {[%clk 0:04:42.6]}
4. Nf3 {[%clk 0:04:47.7]} 4... Ngf6 {[%clk 0:04:41.7]} 5. Ne5 {[%clk 0:04:45.6]}
5... e6 {[%clk 0:04:28.3]} 6. Nd2 {[%clk 0:04:43.9]} 6... Be7 {[%clk 0:04:21.7]}
7. Bd3 {[%clk 0:04:42.6]} 7... Nxe5 {[%clk 0:04:19]} 8. dxe5 {[%clk 0:04:40.5]}
8... Ne4 {[%clk 0:04:06.8]} 9. Bxe7 {[%clk 0:04:30.8]} 9... Qxe7 {[%clk
0:04:06.7]} 10. Qe2 {[%clk 0:04:24.5]} 10... O-O {[%clk 0:04:03.9]} 11. O-O-O
{[%clk 0:04:21]} 11... c5 {[%clk 0:03:44.9]} 12. Bxe4 {[%clk 0:04:14.1]} 12...
fxe4 {[%clk 0:03:43]} 13. f4 {[%clk 0:04:12.2]} 13... exf3 {[%clk 0:03:35.6]}
14. gxf3 {[%clk 0:04:10.1]} 14... b6 {[%clk 0:03:26.8]} 15. f4 {[%clk
0:04:05.9]} 15... Bb7 {[%clk 0:03:25.7]} 16. Rhg1 {[%clk 0:04:01.7]} 16... a6
{[%clk 0:03:11]} 17. Rg3 {[%clk 0:04:00.7]} 17... Rf7 {[%clk 0:03:02.2]} 18.
Rdg1 {[%clk 0:03:58.8]} 18... d4 {[%clk 0:02:47.8]} 19. e4 {[%clk 0:03:50.6]}
19... b5 {[%clk 0:02:40.3]} 20. Nf3 {[%clk 0:03:48.7]} 20... Rxf4 {[%clk
0:02:30.3]} 21. Rxg7+ {[%clk 0:03:45.1]} 21... Qxg7 {[%clk 0:02:22.5]} 22. Rxg7+
{[%clk 0:03:42.3]} 22... Kxg7 {[%clk 0:02:22.4]} 23. Qg2+ {[%clk 0:03:28.8]}
23... Kh8 {[%clk 0:02:19.3]} 24. Ng5 {[%clk 0:03:20.3]} 24... Rg8 {[%clk
0:02:10.8]} 25. h4 {[%clk 0:03:14.6]} 25... Bxe4 {[%clk 0:02:06.2]} 26. Qh2
{[%clk 0:03:01.7]} 26... Rf1+ {[%clk 0:01:49.6]} 27. Kd2 {[%clk 0:02:59.2]}
27... Bg6 {[%clk 0:00:53.3]} 28. Nxe6 {[%clk 0:02:50]} 28... Re8 {[%clk
0:00:51.9]} 29. Nxc5 {[%clk 0:02:43.9]} 29... Rf5 {[%clk 0:00:47.7]} 30. Nd3
{[%clk 0:02:36]} 30... Rf3 {[%clk 0:00:43.6]} 31. Qg2 {[%clk 0:02:28.5]} 31...
Ref8 {[%clk 0:00:42.1]} 32. Qg5 {[%clk 0:02:22.3]} 32... R3f5 {[%clk 0:00:36.8]}
33. Qe7 {[%clk 0:02:18.9]} 33... R5f7 {[%clk 0:00:35.1]} 34. Qc5 {[%clk
0:02:16.5]} 34... Bxd3 {[%clk 0:00:32.5]} 35. Kxd3 {[%clk 0:02:14.4]} 35... Rf3+
{[%clk 0:00:31.5]} 36. Kxd4 {[%clk 0:02:10]} 36... R3f4+ {[%clk 0:00:30.7]} 37.
Kd5 {[%clk 0:02:07.9]} 37... Rxh4 {[%clk 0:00:29.8]} 38. Qxf8# {[%clk
0:02:05.7]} 1-0

[Event "Live Chess"]
[Site "Chess.com"]
[Date "2024.06.01"]
[Round "-"]
[White "RuslanChessN"]
[Black "MagnersCarlsberg2870"]
[Result "1/2-1/2"]
[WhiteElo "1958"]
[BlackElo "1882"]
[TimeControl "300"]
[EndTime "10:30:28 PDT"]
[Termination "Game drawn by repetition"]

1. d4 {[%clk 0:04:54.6]} 1... Nf6 {[%clk 0:04:58.8]} 2. c4 {[%clk 0:04:53.8]}
2... e5 {[%clk 0:04:57.2]} 3. dxe5 {[%clk 0:04:50.1]} 3... Ne4 {[%clk
0:04:56.2]} 4. Qd4 {[%clk 0:04:40.1]} 4... Nc5 {[%clk 0:04:50]} 5. Nf3 {[%clk
0:04:27.9]} 5... Nc6 {[%clk 0:04:48.9]} 6. Qd1 {[%clk 0:04:20.8]} 6... d6 {[%clk
0:04:46.6]} 7. exd6 {[%clk 0:04:17.7]} 7... Bxd6 {[%clk 0:04:45.7]} 8. Nc3
{[%clk 0:04:16.3]} 8... Bf5 {[%clk 0:04:44.3]} 9. Bg5 {[%clk 0:04:07.8]} 9... f6
{[%clk 0:04:42.5]} 10. Be3 {[%clk 0:04:05.7]} 10... Qe7 {[%clk 0:04:40.4]} 11.
Bxc5 {[%clk 0:04:02.4]} 11... Bxc5 {[%clk 0:04:39.6]} 12. e3 {[%clk 0:04:00.9]}
12... Rd8 {[%clk 0:04:37.8]} 13. Qa4 {[%clk 0:03:58.3]} 13... O-O {[%clk
0:04:35.2]} 14. Be2 {[%clk 0:03:53.2]} 14... Nb4 {[%clk 0:04:31.7]} 15. O-O
{[%clk 0:03:50.2]} 15... Bc2 {[%clk 0:04:29.2]} 16. b3 {[%clk 0:03:43.2]} 16...
Bd3 {[%clk 0:04:21.7]} 17. Rfd1 {[%clk 0:03:19.2]} 17... Bxe2 {[%clk 0:04:15.5]}
18. Nxe2 {[%clk 0:03:17.1]} 18... Rxd1+ {[%clk 0:04:10.6]} 19. Rxd1 {[%clk
0:03:14.9]} 19... Rd8 {[%clk 0:04:09.9]} 20. Ned4 {[%clk 0:03:07.4]} 20... Nc2
{[%clk 0:04:03.6]} 21. Rd2 {[%clk 0:03:04.6]} 21... Nxd4 {[%clk 0:03:53.1]} 22.
exd4 {[%clk 0:02:57.7]} 22... Rxd4 {[%clk 0:03:48.4]} 23. Rxd4 {[%clk
0:02:52.2]} 23... Bxd4 {[%clk 0:03:46]} 24. Qa5 {[%clk 0:02:48.5]} 24... Qe4
{[%clk 0:03:42.5]} 25. h3 {[%clk 0:02:35]} 25... Qc2 {[%clk 0:03:35.9]} 26. Qd5+
{[%clk 0:02:29.1]} 26... Kf8 {[%clk 0:03:33.6]} 27. Nxd4 {[%clk 0:02:26.9]}
27... Qc1+ {[%clk 0:03:30.4]} 28. Kh2 {[%clk 0:02:25]} 28... Qf4+ {[%clk
0:03:29.6]} 29. Kg1 {[%clk 0:02:17.9]} 29... Qc1+ {[%clk 0:03:28.6]} 30. Kh2
{[%clk 0:02:16.7]} 30... Qf4+ {[%clk 0:03:27.9]} 31. Kg1 {[%clk 0:02:14.6]}
31... Qc1+ {[%clk 0:03:27.1]} 1/2-1/2